Cogmind - Beta 14 @@@ ROGUE MODE // 2024.09.21 @ 08:23:06 Player: unit-retard04 Result: Destroyed by G-47 Trooper with Particle Gun Performance ------------- Evolutions (2) 1000 Regions Visited (5) 1000 Robots Destroyed (32) 160 Value Destroyed (753) 753 Prototype IDs (0) 0 Alien Tech Used (0) 0 Bonus (0) 0 TOTAL SCORE: 2913 Bonus ------- None Cogmind --------- Core Integrity 0/550 Matter 53/300 Energy 71/100 System Corruption 1% Temperature Cool (9) Movement Core (100) Ox1 Location -8/Materials Parts ------- > --- POWER (1) -------- (None) > --- PROPULSION (4) --- (None) > --- UTILITY (4) ------ (None) > --- WEAPON (2) ------- Ion Cannon > --- INVENTORY (5) ---- Ion Cannon Peak State ------------ > --- POWER ------------ Ion Engine > --- PROPULSION ------- Advanced Treads Advanced Treads > --- UTILITY ---------- Huge Storage Unit Improved Terrain Scanner Improved Terrain Scan Processor System Shield > --- WEAPON ----------- Pulse Rifle Pulse Rifle > --- INVENTORY -------- Wheel Compact Wheel Improved Terrain Scanner Beam Rifle Shotgun Grenade Launcher Rocket Launcher [Rating: 24] Favorites ----------- Power Ion Engine Engine Ion Engine Power Core Nuclear Core Propulsion Compact Wheel Treads Advanced Treads Wheel Compact Wheel Flight Unit Flight Unit Utility Huge Storage Unit Device Improved Terrain Scanner Storage Huge Storage Unit Processor Improved Terrain Scan Processor Hackware System Shield Protection Light Armor Plating Weapon Pulse Rifle Energy Gun Pulse Rifle Energy Cannon Ion Cannon Ballistic Gun Autogun Launcher Grenade Launcher Special Weapon Plasma Cutter Impact Weapon Mace Build | -11 -10 -10 -9 -9 -8 ------- Run | Yrd Mat Min Mat Min Mat Slots Evolved 4 | . . . 2 . 2 Power . | . . . . . . Propulsion 2 | . . . . . 2 Utility 2 | . . . 2 . . Weapon . | . . . . . . Parts Attached 51 | 3 9 . 30 5 4 Power 4 | 1 1 . 1 . 1 Engine 3 | 1 1 . 1 . . Core 1 | . . . . . 1 Reactor . | . . . . . . Propulsion 11 | 2 1 . 5 3 . Treads 5 | . . . 3 2 . Leg . | . . . . . . Wheel 5 | 2 1 . 2 . . Hover . | . . . . . . Flight 1 | . . . . 1 . Utility 14 | . 4 . 10 . . Device 5 | . . . 5 . . Storage 6 | . 3 . 3 . . Processor 1 | . . . 1 . . Hackware 1 | . . . 1 . . Protection 1 | . 1 . . . . Artifact . | . . . . . . Weapon 22 | . 3 . 14 2 3 Energy Gun 8 | . 2 . 6 . . Energy Cannon 1 | . . . . . 1 Ballistic Gun 4 | . . . 3 1 . Ballistic Cannon . | . . . . . . Launcher 6 | . 1 . 3 1 1 Special Weapon 2 | . . . 2 . . Impact Weapon 1 | . . . . . 1 Slashing Weapon . | . . . . . . Piercing Weapon . | . . . . . . Special Melee Weapon . | . . . . . . Unidentified Prototypes . | . . . . . . Parts Lost 21 | . 3 . 10 4 4 Power 4 | . 1 . 1 1 1 Propulsion 3 | . . . 1 1 1 Utility 4 | . . . 4 . . Weapon 10 | . 2 . 4 2 2 Highest Loss Streak 5 | . 2 . 5 4 3 To Critical Strikes . | . . . . . . Average Slot Usage (%) 71 | . 79 85 76 48 10 Engine 7 | . 13 14 6 5 . Treads 3 | . . . 5 5 . Wheel 16 | . 28 28 15 1 . Device 3 | . . . 4 9 . Storage 14 | . 12 14 16 9 . Processor 4 | . . . 6 . . Hackware 3 | . . . 4 . . Protection 2 | . 7 14 . . . Energy Gun 7 | . 6 . 9 . . Ballistic Gun 1 | . . . 1 12 . Launcher 5 | . 10 14 3 2 2 Peak Build Rating 24 | 3 7 6 24 17 5 Average Rating 8 | 2 5 6 12 8 1 On Entrance 5 | . 3 6 6 13 2 Naked Turns 33 | . . . . . 33 Heaviest Build 94 | 3 91 91 94 94 9 Greatest Support 44 | 32 32 26 44 44 4 Greatest Overweight (x) 27 | . 3 3 27 5 2 Average Overweight (x) 1 | . . 3 3 . . Largest Inventory Capacity 25 | 5 25 25 25 25 5 Average Capacity 17 | 5 10 25 25 11 5 Most Carried 8 | 2 2 2 8 6 5 Average Carried 3 | 1 . 2 4 4 3 Final Capacity 25 | 5 25 25 25 5 5 Final Carried 6 | 2 2 2 6 5 1 Class Distribution -------------------- 100% | Mutant Dominant Class ---------------- Mutant | -10/Materials Mutant | -10/Mines Mutant | -9/Materials Mutant | -9/Mines Mutant | -8/Materials Resources | -11 -10 -10 -9 -9 -8 ----------- Run | Yrd Mat Min Mat Min Mat Matter Collected 793 | 185 156 . 382 . 70 Remotely . | . . . . . . Salvage Created 761 | . 237 . 386 . 138 Parts 59 | . 13 . 37 . 9 Haulers Intercepted 1 | . 1 . . . . Recyclers Shooed 2 | . 1 . 1 . . Parts Field Recycled . | . . . . . . Retrieved Matter . | . . . . . . Parts Self-Destructed . | . . . . . . Prevented . | . . . . . . Kills | -11 -10 -10 -9 -9 -8 ------- Run | Yrd Mat Min Mat Min Mat Combat Hostiles Destroyed 23 | . 5 . 15 . 3 Guns 6 | . 1 . 5 . . AOE 16 | . 3 . 10 . 3 Classes Destroyed 10 | . 3 . 6 . 1 Worker 1 | . 1 . . . . Builder 3 | . . . 2 . 1 Tunneler 1 | . . . 1 . . Hauler 1 | . 1 . . . . Recycler 1 | . . . . . 1 Watcher 2 | . . . 2 . . Swarmer 9 | . . . 7 . 2 Grunt 10 | . 5 . 4 . 1 Brawler 1 | . . . 1 . . Sentry 3 | . . . 3 . . Best Kill Streak 5 | . 3 . 5 . 5 Combat Bots Only 4 | . 2 . 4 . 3 Max Kills in Single Turn 5 | . 2 . 4 . 5 Gunslinging . | . . . . . . Exploded 4 | . 1 . 4 . 3 Melee . | . . . . . . Uniques/NPCs Destroyed . | . . . . . . Combat | -11 -10 -10 -9 -9 -8 -------- Run | Yrd Mat Min Mat Min Mat Hostile Shots Fired 306 | . 29 . 80 83 114 Missed 93 | . 10 . 14 27 42 Damage Taken 2798 | . 346 . 969 592 891 Core 991 | . 61 . 222 145 563 Absorbed by Shields . | . . . . . . Core Remaining (%) 61 | 100 . 75 . 8 . Volleys Fired 68 | . 21 . 39 4 4 Largest 2 | . 2 . 2 2 1 Hottest 126 | . 80 . 126 46 60 Shots Fired 94 | . 27 . 57 6 4 Gun 58 | . 18 . 34 6 . Cannon 1 | . . . . . 1 Launcher 31 | . 9 . 19 . 3 Special 4 | . . . 4 . . Kinetic 10 | . . . 4 6 . Thermal 35 | . . . 34 . 1 Explosive 31 | . 9 . 19 . 3 Electromagnetic 18 | . 18 . . . . Robot Hit Streak 5 | . 5 . 5 1 2 Robot Miss Streak 5 | . 2 . 3 5 1 Penetration Max . | . . . . . . Secondary Targets . | . . . . . . Shots Hit Robots 44 | . 12 . 25 1 6 Core Hits 61 | . 15 . 31 . 15 Critical Kills . | . . . . . . Critical Parts Destroyed 2 | . . . . . 2 Critical Strikes 2 | . . . . . 2 Smash 2 | . . . . . 2 Melee Attacks 5 | . . . . . 5 Impact 5 | . . . . . 5 Slashing . | . . . . . . Piercing . | . . . . . . Sneak Attacks . | . . . . . . Combat Hostiles . | . . . . . . Follow-up Attacks . | . . . . . . Damage Inflicted 2140 | . 515 . 1105 14 506 Guns 519 | . 144 . 361 14 . Cannons 24 | . . . . . 24 Explosions 1447 | . 371 . 744 . 332 Melee 139 | . . . . . 139 Ramming 11 | . . . . . 11 Kinetic 60 | . . . 46 14 . Thermal 339 | . . . 315 . 24 Explosive 1447 | . 371 . 744 . 332 Electromagnetic 144 | . 144 . . . . Impact 139 | . . . . . 139 Slashing . | . . . . . . Piercing . | . . . . . . Highest Corruption 4 | . . . 4 4 1 Average Corruption 3 | . . . 3 4 1 Corruption Purged . | . . . . . . Corruption Blocked . | . . . . . . Effects 9 | . . . 7 2 . Message Errors 2 | . . . 2 . . Matter Fused 3 | . . . 1 2 . Heat Flow Errors 1 | . . . 1 . . Energy Discharges 1 | . . . 1 . . Data Loss (minor) 1 | . . . 1 . . Alerts 1 | . . . 1 . . Overload Shots . | . . . . . . Overflow Damage 98 | . 11 . 11 . 76 Projectiles . | . . . . . . Explosions 22 | . 11 . 11 . . Melee 76 | . . . . . 76 Knockbacks . | . . . . . . Impact . | . . . . . . Kinetic . | . . . . . . Secondary . | . . . . . . Self-Inflicted Damage 173 | . 80 . 66 . 27 Shots 7 | . 3 . 3 . 1 Rammed 3 | . . . . . 3 Targets Rammed 3 | . . . . . 3 Kicked . | . . . . . . Crushed . | . . . . . . Highest Temperature 594 | . 61 . 594 15 5 Average Temperature 166 | . 26 . 248 9 3 Received Heat Transfer 1032 | . 174 . 330 123 405 Effects 10 | . . . 10 . . Energy Bleed 1 | . . . 1 . . Interference 1 | . . . 1 . . Matter Decay 1 | . . . 1 . . Short Circuit 4 | . . . 4 . . Damage (minor) 1 | . . . 1 . . Damage (major) 1 | . . . 1 . . Damage (core) 1 | . . . 1 . . Siege Activations . | . . . . . . Robots Corrupted 1 | . 1 . . . . Combat Hostiles 1 | . 1 . . . . Parts Fried . | . . . . . . Impact Corruptions 2 | . . . . . 2 Robots Melted . | . . . . . . Combat Hostiles . | . . . . . . Parts Melted . | . . . . . . Heat Transferred 740 | . . . 703 . 37 Parts Sabotaged . | . . . . . . Parts Stolen . | . . . . . . Parts Stripped . | . . . . . . Power Chain Reactions . | . . . . . . Alert | -11 -10 -10 -9 -9 -8 ------- Run | Yrd Mat Min Mat Min Mat Peak Influence 251 | . 209 81 251 75 220 Initial 81 | . . 81 31 75 13 Average 81 | . 77 81 122 49 50 Maximum Alert Level 1 | . 1 . 1 . 1 Low Security (%) 88 | 100 94 100 80 100 94 Level 1 11 | . 5 . 19 . 5 Level 2 . | . . . . . . Level 3 . | . . . . . . Level 4 . | . . . . . . Level 5 . | . . . . . . High Security . | . . . . . . Max Security . | . . . . . . Squads Dispatched 4 | . 1 . 1 . 2 Investigation 1 | . . . . . 1 Extermination . | . . . . . . Reinforcement 3 | . 1 . 1 . 1 Assault . | . . . . . . Garrison . | . . . . . . Intercept . | . . . . . . Searches Triggered . | . . . . . . Construction Impeded . | . . . . . . Haulers Reinforced . | . . . . . . Active Scanning Responses . | . . . . . . Cargo Convoy Interrupts . | . . . . . . Stealth | -11 -10 -10 -9 -9 -8 --------- Run | Yrd Mat Min Mat Min Mat Distress Signals 1 | . . . 1 . . Communications Jammed . | . . . . . . Distress Signals . | . . . . . . Times Spotted 53 | . 6 . 20 6 21 Peak Tracking Total 13 | . 2 . 4 6 13 Tactical Retreats 3 | . . . . . 3 Traps | -11 -10 -10 -9 -9 -8 ------- Run | Yrd Mat Min Mat Min Mat Traps Triggered 1 | . . . . . 1 Indirectly . | . . . . . . Trap Hack Attempts . | . . . . . . Triggered . | . . . . . . Disarmed . | . . . . . . Reprogrammed . | . . . . . . Reused . | . . . . . . Traps Extracted . | . . . . . . Installed . | . . . . . . Triggered 1 | . . . . . 1 Machines | -11 -10 -10 -9 -9 -8 ---------- Run | Yrd Mat Min Mat Min Mat Machines Disabled 5 | . 3 . 2 . . Max in Single Turn 1 | . 1 . 1 . . Machines Repaired . | . . . . . . Machines Dismantled . | . . . . . . Machines Sabotaged . | . . . . . . Overloaded Fab Kills . | . . . . . . Hacking | -11 -10 -10 -9 -9 -8 --------- Run | Yrd Mat Min Mat Min Mat Machines Accessed 5 | . 2 . 1 . 2 Terminals 3 | . 1 . . . 2 Fabricators . | . . . . . . Repair Stations . | . . . . . . Recycling Units 2 | . 1 . 1 . . Scanalyzers . | . . . . . . Garrison Access . | . . . . . . Total Hacks 13 | . 6 . 2 . 5 Successful 7 | . 4 . 2 . 1 Failed 6 | . 2 . . . 4 Catastrophic . | . . . . . . Database Lockouts . | . . . . . . Manual . | . . . . . . Terminals 6 | . 1 . . . 5 Fabricators . | . . . . . . Repair Stations . | . . . . . . Recycling Units 7 | . 5 . 2 . . Scanalyzers . | . . . . . . Garrison Access . | . . . . . . Terminal Hacks 2 | . 1 . . . 1 Recycling Unit Index 1 | . 1 . . . . Locate Traps 1 | . . . . . 1 Fabricator Hacks . | . . . . . . Repair Station Hacks . | . . . . . . Recycling Unit Hacks 5 | . 3 . 2 . . Recycle Component 1 | . 1 . . . . Process 1 | . . . 1 . . Retrieve Matter 2 | . 1 . 1 . . Retrieve Components 1 | . 1 . . . . Scanalyzer . | . . . . . . Garrison Access Hacks . | . . . . . . Unauthorized Hacks . | . . . . . . Terminals . | . . . . . . Fabricators . | . . . . . . Repair Stations . | . . . . . . Recycling Units . | . . . . . . Scanalyzers . | . . . . . . Garrison Access . | . . . . . . Data Cores Recovered . | . . . . . . Used . | . . . . . . Hacking Detections 2 | . 1 . . . 1 Full Trace Events 1 | . . . . . 1 Feedback Events . | . . . . . . Feedback Blocked . | . . . . . . Robot Schematics Acquired . | . . . . . . Robots Built . | . . . . . . Authchips . | . . . . . . Time . | . . . . . . Total Robot Build Rating . | . . . . . . Part Schematics Acquired . | . . . . . . Parts Built . | . . . . . . Authchips . | . . . . . . Time . | . . . . . . Total Part Build Rating . | . . . . . . Parts Repaired . | . . . . . . Time . | . . . . . . Parts Recycled 1 | . 1 . . . . Recycled Matter 105 | . . . 105 . . Retrieved Matter 142 | . . . 142 . . Retrieved Components 3 | . 3 . . . . Parts Scanalyzed . | . . . . . . Part Schematics Acquired . | . . . . . . Parts Damaged . | . . . . . . Bothacking | -11 -10 -10 -9 -9 -8 ------------ Run | Yrd Mat Min Mat Min Mat Used RIF Installer . | . . . . . . Robots Hacked . | . . . . . . Non-combat . | . . . . . . Combat . | . . . . . . Robot Hacks Applied . | . . . . . . Relay Couplers Released . | . . . . . . Fabnet Peak Effective % . | . . . . . . Robots Rewired . | . . . . . . Allies Hacked . | . . . . . . Hacks Repelled . | . . . . . . Allies | -11 -10 -10 -9 -9 -8 -------- Run | Yrd Mat Min Mat Min Mat Total Allies . | . . . . . . Largest Group . | . . . . . . Highest-Rated Group . | . . . . . . Highest-Rated Ally . | . . . . . . Total Orders . | . . . . . . Ally Attacks . | . . . . . . Total Damage . | . . . . . . Kills . | . . . . . . Allies Corrupted . | . . . . . . Allies Melted . | . . . . . . Intel | -11 -10 -10 -9 -9 -8 ------- Run | Yrd Mat Min Mat Min Mat Robot Analysis Total . | . . . . . . Derelict Logs Recovered . | . . . . . . Drone Launches . | . . . . . . Drone Recoveries . | . . . . . . Exploration | -11 -10 -10 -9 -9 -8 ------------- Run | Yrd Mat Min Mat Min Mat Turns Passed 2170 | 459 332 57 1123 82 117 Spaces Moved 1133 | 88 249 33 524 65 174 Core 130 | 23 . . 10 32 65 Treads 31 | . . . 25 6 . Legs . | . . . . . . Wheels 840 | 65 249 33 489 4 . Hover . | . . . . . . Flight 132 | . . . . 23 109 Fastest Speed 40 | 50 100 135 135 40 40 Average Speed 126 | 86 107 135 171 97 47 Slowest Speed 1400 | 100 135 135 1400 305 150 Overloaded Moves . | . . . . . . Propulsion Burnouts . | . . . . . . Robots Hopped . | . . . . . . Cave-ins Triggered . | . . . . . . Exploration Rate (%) 20 | 9 37 11 29 14 24 Regions Visited 5 Branch Regions 2 Pre-discovered Areas 1 | . . 1 . . . Known Exits Taken . | . . . . . . Unknown Exits Taken 5 | 1 1 1 1 1 . Scrap Searched . | . . . . . . Spaces Dug 8 | . 8 . . . . Terrain Destroyed 133 | . 43 . 79 . 11 Melee . | . . . . . . Projectile . | . . . . . . AOE 133 | . 43 . 79 . 11 Terrain Rammed . | . . . . . . Walls Destroyed . | . . . . . . Machines Disabled . | . . . . . . Actions | -11 -10 -10 -9 -9 -8 --------- Run | Yrd Mat Min Mat Min Mat Total 1774 | 471 283 45 694 81 200 Wait 452 | 374 . 13 65 . . Move 1128 | 87 248 32 523 64 174 Hop . | . . . . . . Pick Up 38 | 6 5 . 23 . 4 Fast Attach 5 | . 2 . 1 2 . Attach 39 | 3 4 . 25 3 4 Detach 10 | . . . 6 3 1 Swap 7 | . 3 . 4 . . Drop 19 | 1 . . 8 5 5 Fire 68 | . 21 . 39 4 4 Melee 5 | . . . . . 5 Ram 3 | . . . . . 3 Kick . | . . . . . . Crush . | . . . . . . Escape Stasis . | . . . . . . Rewire . | . . . . . . Trap . | . . . . . . Miscellaneous . | . . . . . . Route ------- -11/Scrapyard -10/Materials -10/Mines -9/Materials (discovered 2 exits: *Mat / [*Min]) -9/Mines -8/Materials History --------- Turn | Location | Event 31 | -11/Scrapyard | Discovered new exit (range 15) 460 | -11/Scrapyard | Entered Materials 461 | -10/Materials | Build established: Mutant 773 | -10/Materials | Discovered new exit (range 10) 792 | -10/Materials | Entered Mines 793 | -10/Mines | Assembled infested the area 828 | -10/Mines | Discovered new exit (range 13) 831 | -10/Mines | Learned location of Storage (-8) 849 | -10/Mines | Entered Materials 849 | -9/Materials | Evolved 2 slots: Utility x2 1421 | -9/Materials | Discovered new exit (range 16) 1511 | -9/Materials | Lost 5 parts (1p2u2w) 1849 | -9/Materials | Core integrity fell below 50% 1896 | -9/Materials | Lost 4 parts (1n1u2w) 1937 | -9/Materials | Discovered new exit (range 6) 1972 | -9/Materials | Entered Mines 1993 | -9/Mines | Core integrity fell below 20% 2027 | -9/Mines | YI-UF0 nonchalantly dropped a Grenade Launcher on the ground 2044 | -9/Mines | Lost 4 parts (1p1n2w) 2053 | -9/Mines | Discovered new exit (range 4) 2054 | -9/Mines | Entered Materials 2054 | -8/Materials | Evolved 2 slots: Propulsion x2 2146 | -8/Materials | Core integrity fell below 50% 2160 | -8/Materials | Core integrity fell below 20% 2171 | -8/Materials | Destroyed by G-47 Trooper with Particle Gun Last Messages --------------- Critical hit (Burn: +37). Mace destroyed. G-47 Trooper system corruption misinterpreted. G-47 Trooper triggered Blade Trap. Massive razor-sharp blades shoot up from within the floor. Aluminum Leg severed. G-47 Trooper misfires. S-10 Pest destroyed. G-47 Trooper destroyed. U-05 Engineer destroyed. R-06 Scavenger destroyed. U-05 Engineer lays Concrete. Critical hit (Burn: +37). Grenade Launcher destroyed. Acquired 8 matter. M-13 Machinist fits Backup Laser I on G-47 Trooper. Acquired 46 matter. U-05 Engineer lays Concrete. M-13 Machinist fits Backup Propulsion I on G-47 Trooper. U-05 Engineer lays Concrete. Map ----- +----------------------------------------------------+ | ????# #########/##### # ?????????????????????? | | ##### # ????????????????????? | | ^^ #? ????????????????????? | | "^ """ #? ???????????????????? | | T """ ##?##??????????????????? | | ###### ####### " """ ! T#?????????????????????? | | ??# ?????# ^ ########### ???????? | | ??# ""????# ???????? | | ??# """???#^ ^ """ ???????? | | ??# """#??# """ ???????? | | ??# ???# """ ############# ????????? | | ??# [ ""????# #????????????^^^???????? | | ??# ""????# ] #?????##???????????????? | | ??# "?????###"T"###ut #??? [#???????????????? | | ??# ???????#"""#?# #? #???????????????? | | ??#######????????###### # [[ /???????????????? | | ??????????????????#!! + [! ??????????????????? | | ??????????????????#!! k #??????????????????????? | | ??????????????????#!! #??????????????????????? | | ??????????????????#!! ok#??????????????????????? | | ??????????????????#!! u!#??????????????????????? | | ??????????????????#!! !*m#??????????????????????? | | ???????????????########=%=#??????????????????????? | | ???????????????# /g=gg??????????????????????? | | ???????????????# a*##?????????????????????? | | ???????????????# [ g@ #?????????????????????? | | ???????????????# u% ##?????????????????????? | | ???????????????# g ##?????????????????????? | | ???????????????# ! ! #?????????????????????? | | ???????????????######## =[!#?????????????????????? | | ??????????????????????# *%##?????????????????????? | | ??????????????????????# =g#??????????????????????? | | ??????????????????????# #??????????????????????? | | ??????????????????????# #??????????????????????? | | ?????????????????????? / ??????????????????????? | | ?????????????????????? ??????????????????????? | | ????????????????????? T ?????????????????????? | | ????????????????????? ?????????????????????? | | ????????????????????## ##????????????????????? | | ?????????????????????# #?????????????????????? | | ?????????????????????# ?????????????????????? | | ?????????????????????#!!||**?????????????????????? | | ?????????????????????#!!||**?????????????????????? | | ?????????????????????#######?????????????????????? | | ?????????????????????????????????????????????????? | | ?????????????????????????????????????????????????? | | ?????????????????????????????????????????????????? | | ?????????????????????????????????????????????????? | | ?????????????????????????????????????????????????? | | ?????????????????????????????????????????????????? | +----------------------------------------------------+ Best States ------------- Heat Dissipation 38 Energy Generation 14 Energy Capacity 250 Matter Stores 450 Matter Capacity 600 Sight Range 16 Terrain Scan Range 16 Terrain Scan Density 110 Armor Coverage 150 Evasion (%) 62 Recoil Reduction 2 Defensive Hacking 10 Item Schematics ----------------- None Robot Schematics ------------------ None Fabricated ------------ Nothing Alien Tech Used ----------------- None Achievements -------------- Close Call Omniscient Cartographer Oops Power Corrupts Challenges ------------ None Game ------ Seed BarrageBeamLog Manual? 0 Play Time 00:28:17 Cumulative 2.1 hours Start 2024.09.21 @ 07:55:19 End 2024.09.21 @ 08:23:06 Sessions 1 Manual Loads 0 Difficulty Rogue Special Mode None Game No. 6 Rogue 6 Adventurer 0 Explorer 0 Win Type - Total 0 Types 0/0/0/0/0/0/0/0/0 Lore% 0 Gallery% 5 Achievement% 5 Wizard Run 0 Options --------- Layout 0 ASCII 0 Keyboard 0 Movement Mouse Keybinds 0 Fullscreen 1 Font 18/SmallcapsGlow Map View 38x25 Zoom Use 81% Tactical HUD 0 Map Filters NONE Filters NONE Steam 1 RUN: 79489afa-dd9f-4a66-982c-fd8935db9a41